[Event "Live Chess"]
[Site "Chess.com"]
[Date "2023.05.20"]
[Round "-"]
[White "Tushinskiy"]
[Black "MaximKris"]
[Result "0-1"]
[WhiteElo "2095"]
[BlackElo "1820"]
[TimeControl "300"]
[EndTime "9:38:55 PDT"]
[Termination "MaximKris won by resignation"]

1. d4 {[%clk 0:04:56]} 1... d5 {[%clk 0:04:58.9]} 2. c3 {[%clk 0:04:55.9]} 2...
Nf6 {[%clk 0:04:57.7]} 3. Nf3 {[%clk 0:04:55.8]} 3... Bf5 {[%clk 0:04:56.4]} 4.
Bf4 {[%clk 0:04:48.6]} 4... e6 {[%clk 0:04:55.5]} 5. Bg3 {[%clk 0:04:48.5]} 5...
Bd6 {[%clk 0:04:54.8]} 6. Nbd2 {[%clk 0:04:46.2]} 6... Bxg3 {[%clk 0:04:53.5]}
7. hxg3 {[%clk 0:04:46.1]} 7... Nc6 {[%clk 0:04:53.3]} 8. e3 {[%clk 0:04:44.5]}
8... Ne4 {[%clk 0:04:52.4]} 9. Nxe4 {[%clk 0:04:43]} 9... Bxe4 {[%clk
0:04:52.3]} 10. Bb5 {[%clk 0:04:41.6]} 10... a6 {[%clk 0:04:49.1]} 11. Bxc6+
{[%clk 0:04:40.3]} 11... bxc6 {[%clk 0:04:49]} 12. Ne5 {[%clk 0:04:39.7]} 12...
Bxg2 {[%clk 0:04:44.1]} 13. Rh3 {[%clk 0:04:37.2]} 13... Bxh3 {[%clk 0:04:42.1]}
14. Qh5 {[%clk 0:04:36.6]} 14... Qf6 {[%clk 0:04:32.6]} 15. Qxh3 {[%clk
0:04:35.2]} 15... O-O-O {[%clk 0:04:27.7]} 16. Nxc6 {[%clk 0:04:32]} 16... Rd6
{[%clk 0:04:26.4]} 17. Ne5 {[%clk 0:04:31.2]} 17... Rb6 {[%clk 0:04:16.1]} 18.
b3 {[%clk 0:04:28.4]} 18... h5 {[%clk 0:04:10.5]} 19. f4 {[%clk 0:04:26.5]}
19... g5 {[%clk 0:03:59.7]} 20. O-O-O {[%clk 0:04:20.9]} 20... g4 {[%clk
0:03:49.5]} 21. Nxg4 {[%clk 0:04:09.7]} 21... hxg4 {[%clk 0:03:49.4]} 22. Qxg4
{[%clk 0:04:07.9]} 22... Qf5 {[%clk 0:03:36.5]} 23. Qe2 {[%clk 0:04:04]} 23...
Qe4 {[%clk 0:03:27.9]} 24. Kb2 {[%clk 0:04:02.1]} 24... a5 {[%clk 0:03:15.9]}
25. a4 {[%clk 0:03:58.1]} 25... Kd7 {[%clk 0:03:12.9]} 26. Ka3 {[%clk 0:03:55]}
26... Rhb8 {[%clk 0:03:11.3]} 0-1

[Event "Live Chess"]
[Site "Chess.com"]
[Date "2023.05.20"]
[Round "-"]
[White "PiotrD11"]
[Black "Bob2pen"]
[Result "0-1"]
[WhiteElo "1333"]
[BlackElo "1825"]
[TimeControl "300"]
[EndTime "9:38:56 PDT"]
[Termination "Bob2pen won by checkmate"]

1. e4 {[%clk 0:04:57.4]} 1... e6 {[%clk 0:04:58.6]} 2. d4 {[%clk 0:04:55.3]}
2... d5 {[%clk 0:04:57.5]} 3. e5 {[%clk 0:04:54.5]} 3... c5 {[%clk 0:04:56.3]}
4. c3 {[%clk 0:04:53.6]} 4... Nc6 {[%clk 0:04:55.4]} 5. Nf3 {[%clk 0:04:53]}
5... Qb6 {[%clk 0:04:54.4]} 6. Na3 {[%clk 0:04:46.9]} 6... Nh6 {[%clk
0:04:48.9]} 7. Bxh6 {[%clk 0:04:33.4]} 7... gxh6 {[%clk 0:04:44]} 8. Rb1 {[%clk
0:04:33]} 8... cxd4 {[%clk 0:04:39.6]} 9. Nxd4 {[%clk 0:04:27.2]} 9... Nxd4
{[%clk 0:04:27]} 10. Qxd4 {[%clk 0:04:25.3]} 10... Bc5 {[%clk 0:04:25.4]} 11.
Qa4+ {[%clk 0:04:16.9]} 11... Bd7 {[%clk 0:04:22.3]} 12. Qc2 {[%clk 0:04:16.4]}
12... Rc8 {[%clk 0:04:06.1]} 13. Bd3 {[%clk 0:03:59.6]} 13... d4 {[%clk
0:03:59.2]} 14. Nc4 {[%clk 0:03:49.7]} 14... Qc7 {[%clk 0:03:54.3]} 15. O-O
{[%clk 0:03:47]} 15... b5 {[%clk 0:03:44]} 16. Nd6+ {[%clk 0:03:41.8]} 16...
Bxd6 {[%clk 0:03:40.5]} 17. exd6 {[%clk 0:03:39.3]} 17... Qxd6 {[%clk
0:03:38.5]} 18. Rbd1 {[%clk 0:03:33.8]} 18... dxc3 {[%clk 0:03:29.1]} 19. bxc3
{[%clk 0:03:32.6]} 19... Qc7 {[%clk 0:03:23.1]} 20. Rc1 {[%clk 0:03:23.2]} 20...
Bc6 {[%clk 0:03:09.6]} 21. Bxh7 {[%clk 0:03:08.4]} 21... f5 {[%clk 0:03:07.7]}
22. Bg6+ {[%clk 0:03:03.8]} 22... Ke7 {[%clk 0:03:05.8]} 23. Rfe1 {[%clk
0:02:58.6]} 23... Kf6 {[%clk 0:02:58]} 24. Bh5 {[%clk 0:02:54.2]} 24... Rhg8
{[%clk 0:02:55.3]} 25. g3 {[%clk 0:02:52.5]} 25... Bb7 {[%clk 0:02:43.8]} 26.
Qb3 {[%clk 0:02:47.5]} 26... Qc6 {[%clk 0:02:41.3]} 27. f3 {[%clk 0:02:17.6]}
27... Rg5 {[%clk 0:02:33.7]} 28. c4 {[%clk 0:02:08.4]} 28... Rxh5 {[%clk
0:02:28.9]} 29. Qc3+ {[%clk 0:02:06.1]} 29... Kf7 {[%clk 0:02:20.9]} 30. Qe5
{[%clk 0:01:58.3]} 30... Rd8 {[%clk 0:02:04]} 31. cxb5 {[%clk 0:01:53]} 31...
Qd6 {[%clk 0:02:02.6]} 32. Qxd6 {[%clk 0:01:46]} 32... Rxd6 {[%clk 0:02:01.3]}
33. Rc7+ {[%clk 0:01:45.7]} 33... Kf6 {[%clk 0:02:00.2]} 34. Rxb7 {[%clk
0:01:44.2]} 34... Rd2 {[%clk 0:01:58.9]} 35. h4 {[%clk 0:01:26.6]} 35... Rxa2
{[%clk 0:01:56.7]} 36. Rd1 {[%clk 0:01:04.3]} 36... f4 {[%clk 0:01:54.5]} 37.
Rdd7 {[%clk 0:01:01.5]} 37... fxg3 {[%clk 0:01:51.5]} 38. Rf7+ {[%clk
0:00:59.6]} 38... Ke5 {[%clk 0:01:50.3]} 39. f4+ {[%clk 0:00:58.9]} 39... Ke4
{[%clk 0:01:47.2]} 40. Rbe7 {[%clk 0:00:54.2]} 40... Kf3 {[%clk 0:01:45.1]} 41.
Rxa7 {[%clk 0:00:51]} 41... Rxb5 {[%clk 0:01:38.6]} 42. Rxa2 {[%clk 0:00:47.2]}
42... Rb1# {[%clk 0:01:37.2]} 0-1

[Event "Live Chess"]
[Site "Chess.com"]
[Date "2023.05.20"]
[Round "-"]
[White "bristolunichess"]
[Black "martynstanley"]
[Result "1-0"]
[WhiteElo "1847"]
[BlackElo "989"]
[TimeControl "300"]
[EndTime "9:39:00 PDT"]
[Termination "bristolunichess won by checkmate"]

1. e4 {[%clk 0:04:58.2]} 1... e6 {[%clk 0:04:58.6]} 2. d4 {[%clk 0:04:54.8]}
2... d5 {[%clk 0:04:57.1]} 3. Nd2 {[%clk 0:04:54.4]} 3... c5 {[%clk 0:04:55.4]}
4. c3 {[%clk 0:04:43.5]} 4... Nc6 {[%clk 0:04:53.8]} 5. Ne2 {[%clk 0:04:41]}
5... Qb6 {[%clk 0:04:52.1]} 6. Nf3 {[%clk 0:04:36.4]} 6... Nh6 {[%clk
0:04:50.8]} 7. exd5 {[%clk 0:04:29]} 7... exd5 {[%clk 0:04:48.1]} 8. Bxh6 {[%clk
0:04:25]} 8... gxh6 {[%clk 0:04:46.6]} 9. Qd2 {[%clk 0:04:19.7]} 9... c4 {[%clk
0:04:42.7]} 10. Nf4 {[%clk 0:04:09.6]} 10... Bg7 {[%clk 0:04:38.3]} 11. Nxd5
{[%clk 0:04:03]} 11... Qd8 {[%clk 0:04:35.6]} 12. Qe3+ {[%clk 0:03:59.5]} 12...
Ne7 {[%clk 0:04:32.8]} 13. Bxc4 {[%clk 0:03:49.7]} 13... a6 {[%clk 0:04:28]} 14.
O-O {[%clk 0:03:35.5]} 14... b5 {[%clk 0:04:26]} 15. Bb3 {[%clk 0:03:35.2]}
15... Bb7 {[%clk 0:04:23.8]} 16. Rfe1 {[%clk 0:03:24.6]} 16... Qd6 {[%clk
0:04:09.8]} 17. Nh4 {[%clk 0:03:10.1]} 17... O-O-O {[%clk 0:04:08.7]} 18. Nxe7+
{[%clk 0:03:07.9]} 18... Kb8 {[%clk 0:04:06.1]} 19. Nhf5 {[%clk 0:02:54]} 19...
Qc6 {[%clk 0:03:45.3]} 20. Nxc6+ {[%clk 0:02:47.3]} 20... Bxc6 {[%clk 0:03:44]}
21. Qg3+ {[%clk 0:02:45.5]} 21... Kb7 {[%clk 0:03:39.7]} 22. Qxg7 {[%clk
0:02:44.7]} 22... Rhg8 {[%clk 0:03:35.5]} 23. Qxf7+ {[%clk 0:02:43.9]} 23... Kb6
{[%clk 0:03:30.2]} 24. g3 {[%clk 0:02:38.9]} 24... h5 {[%clk 0:03:27.6]} 25.
Qxh7 {[%clk 0:02:33.2]} 25... a5 {[%clk 0:03:22.3]} 26. c4 {[%clk 0:02:30.8]}
26... a4 {[%clk 0:03:20]} 27. c5+ {[%clk 0:02:29.2]} 27... Ka5 {[%clk
0:03:17.5]} 28. Bxg8 {[%clk 0:02:27.7]} 28... Kb4 {[%clk 0:03:13]} 29. a3+
{[%clk 0:02:23.4]} 29... Ka5 {[%clk 0:03:07.2]} 30. Qa7# {[%clk 0:02:23.1]} 1-0

[Event "Live Chess"]
[Site "Chess.com"]
[Date "2023.05.20"]
[Round "-"]
[White "Delacorta"]
[Black "lucaskk818"]
[Result "0-1"]
[WhiteElo "1383"]
[BlackElo "1887"]
[TimeControl "300"]
[EndTime "9:39:08 PDT"]
[Termination "lucaskk818 won by resignation"]

1. d4 {[%clk 0:04:58.1]} 1... Nf6 {[%clk 0:04:58.1]} 2. Nf3 {[%clk 0:04:58]}
2... g6 {[%clk 0:04:56.5]} 3. e3 {[%clk 0:04:57.9]} 3... Bg7 {[%clk 0:04:55.6]}
4. Be2 {[%clk 0:04:57]} 4... O-O {[%clk 0:04:55.2]} 5. c4 {[%clk 0:04:56.1]}
5... d6 {[%clk 0:04:54.8]} 6. Nc3 {[%clk 0:04:55.2]} 6... Nbd7 {[%clk
0:04:53.9]} 7. h3 {[%clk 0:04:53]} 7... a6 {[%clk 0:04:52.9]} 8. O-O {[%clk
0:04:50.6]} 8... c5 {[%clk 0:04:48]} 9. d5 {[%clk 0:04:49.3]} 9... Rb8 {[%clk
0:04:46.2]} 10. b3 {[%clk 0:04:38.3]} 10... Ne4 {[%clk 0:04:44.7]} 11. Nxe4
{[%clk 0:04:00.6]} 11... Bxa1 {[%clk 0:04:40.3]} 12. Qc2 {[%clk 0:03:43.5]}
12... Bg7 {[%clk 0:04:27.4]} 13. h4 {[%clk 0:03:42.1]} 13... h6 {[%clk
0:04:20.3]} 14. h5 {[%clk 0:03:41.1]} 14... g5 {[%clk 0:04:19.4]} 15. Nfxg5
{[%clk 0:03:39.2]} 15... hxg5 {[%clk 0:04:18]} 16. Nxg5 {[%clk 0:03:38.5]} 16...
f5 {[%clk 0:03:56]} 17. Ne6 {[%clk 0:03:11.1]} 17... Qe8 {[%clk 0:03:53.8]} 18.
Nxf8 {[%clk 0:02:39.1]} 18... Qxf8 {[%clk 0:03:53.7]} 19. Bb2 {[%clk 0:02:25.6]}
19... Bxb2 {[%clk 0:03:48.4]} 20. Qxb2 {[%clk 0:02:24.7]} 20... Qf6 {[%clk
0:03:47.2]} 21. Qc2 {[%clk 0:02:15.4]} 21... Ne5 {[%clk 0:03:35.9]} 22. f4
{[%clk 0:02:13.5]} 22... Ng4 {[%clk 0:03:31.6]} 23. Rf3 {[%clk 0:01:56.6]} 23...
Qh4 {[%clk 0:03:16.5]} 24. Rh3 {[%clk 0:01:39.2]} 24... Qf2+ {[%clk 0:03:11]}
25. Kh1 {[%clk 0:01:36.5]} 25... Qe1+ {[%clk 0:03:10.3]} 0-1

[Event "Live Chess"]
[Site "Chess.com"]
[Date "2023.05.20"]
[Round "-"]
[White "Goblinbasher"]
[Black "Driftboard"]
[Result "1-0"]
[WhiteElo "1201"]
[BlackElo "750"]
[TimeControl "300"]
[EndTime "9:39:14 PDT"]
[Termination "Goblinbasher won by checkmate"]

1. e4 {[%clk 0:04:57.2]} 1... e5 {[%clk 0:04:59]} 2. Nc3 {[%clk 0:04:55.8]} 2...
Nf6 {[%clk 0:04:57.4]} 3. f4 {[%clk 0:04:53.5]} 3... exf4 {[%clk 0:04:55.9]} 4.
e5 {[%clk 0:04:52.1]} 4... Ng8 {[%clk 0:04:53.7]} 5. Nf3 {[%clk 0:04:50.8]} 5...
Nc6 {[%clk 0:04:51]} 6. d4 {[%clk 0:04:49.1]} 6... Bb4 {[%clk 0:04:46.3]} 7.
Bxf4 {[%clk 0:04:46.7]} 7... d6 {[%clk 0:04:41.1]} 8. exd6 {[%clk 0:04:42.3]}
8... Bxd6 {[%clk 0:04:37.2]} 9. Qe2+ {[%clk 0:04:34.1]} 9... Nge7 {[%clk
0:04:29.2]} 10. Bg3 {[%clk 0:04:21.6]} 10... Bxg3+ {[%clk 0:04:24.4]} 11. hxg3
{[%clk 0:04:20.4]} 11... Bg4 {[%clk 0:04:19.9]} 12. O-O-O {[%clk 0:04:14.5]}
12... Bxf3 {[%clk 0:04:18.9]} 13. gxf3 {[%clk 0:04:09]} 13... Nxd4 {[%clk
0:04:15.4]} 14. Qe3 {[%clk 0:04:04.2]} 14... c5 {[%clk 0:03:59.3]} 15. Bb5+
{[%clk 0:03:55.9]} 15... Kf8 {[%clk 0:03:49.2]} 16. Bc4 {[%clk 0:03:47.5]} 16...
Qa5 {[%clk 0:03:36.3]} 17. Rhe1 {[%clk 0:03:36.5]} 17... b6 {[%clk 0:03:25.5]}
18. Qxe7+ {[%clk 0:03:34.5]} 18... Kg8 {[%clk 0:03:23]} 19. Qxf7# {[%clk
0:03:33.1]} 1-0

[Event "Live Chess"]
[Site "Chess.com"]
[Date "2023.05.20"]
[Round "-"]
[White "ossie57"]
[Black "risinghelios"]
[Result "0-1"]
[WhiteElo "1834"]
[BlackElo "1960"]
[TimeControl "300"]
[EndTime "9:39:19 PDT"]
[Termination "risinghelios won by checkmate"]

1. d4 {[%clk 0:04:59.4]} 1... e5 {[%clk 0:04:58.9]} 2. dxe5 {[%clk 0:04:58.5]}
2... Nc6 {[%clk 0:04:58.3]} 3. Nf3 {[%clk 0:04:57.7]} 3... Qe7 {[%clk
0:04:57.9]} 4. Bg5 {[%clk 0:04:56.5]} 4... Qb4+ {[%clk 0:04:57.1]} 5. Nc3 {[%clk
0:04:55.7]} 5... Qxb2 {[%clk 0:04:56.3]} 6. Bd2 {[%clk 0:04:55]} 6... Nb4 {[%clk
0:04:50.3]} 7. Nd4 {[%clk 0:04:44.6]} 7... c5 {[%clk 0:04:42.3]} 8. Rb1 {[%clk
0:04:43.9]} 8... Qa3 {[%clk 0:04:33.3]} 9. Rb3 {[%clk 0:04:42.7]} 9... Qa5
{[%clk 0:04:29.5]} 10. Ndb5 {[%clk 0:04:32.4]} 10... a6 {[%clk 0:04:28.3]} 11.
Nd6+ {[%clk 0:04:19.7]} 11... Bxd6 {[%clk 0:04:26.9]} 12. exd6 {[%clk
0:04:19.6]} 12... Nf6 {[%clk 0:04:21.8]} 13. e4 {[%clk 0:04:08.4]} 13... O-O
{[%clk 0:04:19.6]} 14. e5 {[%clk 0:04:06.7]} 14... Re8 {[%clk 0:04:18.3]} 15. f4
{[%clk 0:04:05.7]} 15... c4 {[%clk 0:04:11.4]} 16. Rxb4 {[%clk 0:03:54.7]} 16...
Qxb4 {[%clk 0:04:08.9]} 17. Nd5 {[%clk 0:03:53.7]} 17... c3 {[%clk 0:03:56.4]}
18. Nxf6+ {[%clk 0:03:52.2]} 18... gxf6 {[%clk 0:03:55.1]} 19. Be3 {[%clk
0:03:18.4]} 19... fxe5 {[%clk 0:03:50.5]} 20. Be2 {[%clk 0:02:56.6]} 20... exf4
{[%clk 0:03:47.9]} 21. Bd4 {[%clk 0:02:47.8]} 21... Qxd6 {[%clk 0:03:41.8]} 22.
O-O {[%clk 0:02:46.4]} 22... b5 {[%clk 0:03:37.6]} 23. Kh1 {[%clk 0:02:40.4]}
23... Bb7 {[%clk 0:03:36.2]} 24. Bd3 {[%clk 0:02:32.2]} 24... Qd5 {[%clk
0:03:31.3]} 25. Bxh7+ {[%clk 0:02:23.5]} 25... Kxh7 {[%clk 0:03:24.9]} 26. Qd3+
{[%clk 0:02:21.1]} 26... Qe4 {[%clk 0:03:22.8]} 27. Qh3+ {[%clk 0:02:20.1]}
27... Kg6 {[%clk 0:03:17.8]} 28. Qg4+ {[%clk 0:02:12.8]} 28... Kh6 {[%clk
0:03:08.9]} 29. Qg7+ {[%clk 0:02:01]} 29... Kh5 {[%clk 0:03:04.5]} 30. Qxf7+
{[%clk 0:01:55]} 30... Kg5 {[%clk 0:02:46.5]} 31. Bf6+ {[%clk 0:01:42.2]} 31...
Kf5 {[%clk 0:02:39.3]} 32. Bd4+ {[%clk 0:01:27.5]} 32... Kg4 {[%clk 0:02:27.6]}
33. h3+ {[%clk 0:01:22.1]} 33... Kg5 {[%clk 0:02:16.8]} 34. Qf6+ {[%clk
0:01:06.1]} 34... Kh5 {[%clk 0:02:12.3]} 35. Qf7+ {[%clk 0:00:58.6]} 35... Qg6
{[%clk 0:02:10.1]} 36. Qxf4 {[%clk 0:00:52.2]} 36... Qxg2# {[%clk 0:02:08.9]}
0-1

[Event "Live Chess"]
[Site "Chess.com"]
[Date "2023.05.20"]
[Round "-"]
[White "Prijmak"]
[Black "LaupMiths"]
[Result "0-1"]
[WhiteElo "985"]
[BlackElo "1825"]
[TimeControl "300"]
[EndTime "9:39:20 PDT"]
[Termination "LaupMiths won by resignation"]

1. e4 {[%clk 0:04:58.7]} 1... d6 {[%clk 0:04:57.1]} 2. d4 {[%clk 0:04:56.1]}
2... g6 {[%clk 0:04:56.2]} 3. c4 {[%clk 0:04:54.1]} 3... Bg7 {[%clk 0:04:54.7]}
4. Nf3 {[%clk 0:04:52.4]} 4... a6 {[%clk 0:04:53.2]} 5. Nc3 {[%clk 0:04:51.2]}
5... Nd7 {[%clk 0:04:52.2]} 6. Be3 {[%clk 0:04:49]} 6... b6 {[%clk 0:04:50.5]}
7. Bd3 {[%clk 0:04:47.6]} 7... Bb7 {[%clk 0:04:48.9]} 8. O-O {[%clk 0:04:45.4]}
8... e6 {[%clk 0:04:46.3]} 9. Qc2 {[%clk 0:04:39.4]} 9... Ne7 {[%clk 0:04:45.3]}
10. Rae1 {[%clk 0:04:33.6]} 10... O-O {[%clk 0:04:43.5]} 11. h3 {[%clk
0:04:30.8]} 11... c5 {[%clk 0:04:36.7]} 12. d5 {[%clk 0:04:27.1]} 12... e5
{[%clk 0:04:32.4]} 13. Qd2 {[%clk 0:04:22.5]} 13... Bc8 {[%clk 0:04:25.4]} 14.
Bh6 {[%clk 0:04:20]} 14... f6 {[%clk 0:04:19.5]} 15. Bxg7 {[%clk 0:04:16.1]}
15... Kxg7 {[%clk 0:04:18.5]} 16. Nh2 {[%clk 0:04:13.7]} 16... Rf7 {[%clk
0:04:08.6]} 17. Ng4 {[%clk 0:04:00.5]} 17... Ng8 {[%clk 0:04:05.4]} 18. f4
{[%clk 0:03:55]} 18... h6 {[%clk 0:04:00.6]} 19. fxe5 {[%clk 0:03:43.2]} 19...
Nxe5 {[%clk 0:03:56.8]} 20. Nxe5 {[%clk 0:03:41.2]} 20... fxe5 {[%clk
0:03:54.2]} 21. Rxf7+ {[%clk 0:03:39.7]} 21... Kxf7 {[%clk 0:03:53.3]} 22. Rf1+
{[%clk 0:03:36.3]} 22... Kg7 {[%clk 0:03:52.9]} 23. Qf2 {[%clk 0:03:30.5]} 23...
Ra7 {[%clk 0:03:52.3]} 24. Ne2 {[%clk 0:03:25.1]} 24... Qe8 {[%clk 0:03:48.2]}
25. Ng3 {[%clk 0:03:20.1]} 25... Rf7 {[%clk 0:03:47.7]} 26. Qe2 {[%clk
0:03:16.4]} 26... Bd7 {[%clk 0:03:41.3]} 27. Rxf7+ {[%clk 0:03:14.2]} 27... Qxf7
{[%clk 0:03:40.1]} 28. Qf2 {[%clk 0:03:13.1]} 28... Ne7 {[%clk 0:03:35.6]} 29.
Ne2 {[%clk 0:03:06.4]} 29... Qxf2+ {[%clk 0:03:33.2]} 30. Kxf2 {[%clk
0:03:04.9]} 30... g5 {[%clk 0:03:30.6]} 31. Ng3 {[%clk 0:03:01.6]} 31... b5
{[%clk 0:03:23.4]} 32. b3 {[%clk 0:02:59.1]} 32... bxc4 {[%clk 0:03:19.3]} 33.
bxc4 {[%clk 0:02:57.7]} 33... Ng6 {[%clk 0:03:11.6]} 34. Nh5+ {[%clk 0:02:52.7]}
34... Kf7 {[%clk 0:03:09.6]} 35. Ng3 {[%clk 0:02:47.9]} 35... Nf4 {[%clk
0:03:04.7]} 36. Bc2 {[%clk 0:02:43.2]} 36... Kf6 {[%clk 0:03:01.6]} 37. Ne2
{[%clk 0:02:37.5]} 37... Be8 {[%clk 0:02:44.8]} 38. Bd1 {[%clk 0:02:24.9]} 38...
Ng6 {[%clk 0:02:25.4]} 39. Ng3 {[%clk 0:02:20.5]} 39... Ne7 {[%clk 0:02:24.9]}
40. a4 {[%clk 0:02:14.6]} 40... Kg7 {[%clk 0:02:19.2]} 41. a5 {[%clk 0:02:06]}
41... Bg6 {[%clk 0:02:17.4]} 42. Bc2 {[%clk 0:02:03.7]} 42... Kf6 {[%clk
0:02:15.7]} 43. Kf3 {[%clk 0:02:00.9]} 43... Ng8 {[%clk 0:02:07.3]} 44. Ne2
{[%clk 0:01:57.9]} 44... h5 {[%clk 0:02:05.7]} 45. Ng1 {[%clk 0:01:53.7]} 45...
Nh6 {[%clk 0:02:03.6]} 46. Ne2 {[%clk 0:01:49.7]} 46... Nf7 {[%clk 0:02:02.2]}
47. Bd1 {[%clk 0:01:43.5]} 47... Nd8 {[%clk 0:02:01]} 48. Ba4 {[%clk 0:01:41.7]}
48... Nb7 {[%clk 0:01:59]} 49. Nc3 {[%clk 0:01:34.5]} 49... Nxa5 {[%clk
0:01:57]} 50. Ne2 {[%clk 0:01:27.5]} 50... Nxc4 {[%clk 0:01:55.7]} 51. Bb3
{[%clk 0:01:20.5]} 51... Nd2+ {[%clk 0:01:53.8]} 52. Ke3 {[%clk 0:01:17.6]}
52... Nxb3 {[%clk 0:01:47.4]} 53. Nc3 {[%clk 0:01:15.8]} 53... Nd4 {[%clk
0:01:44.5]} 54. Kd3 {[%clk 0:01:12.8]} 54... g4 {[%clk 0:01:41.9]} 55. hxg4
{[%clk 0:01:10]} 55... hxg4 {[%clk 0:01:40.3]} 56. Na4 {[%clk 0:01:07.8]} 56...
Nb5 {[%clk 0:01:34]} 57. Nb6 {[%clk 0:01:05.4]} 57... Kg5 {[%clk 0:01:29.9]} 58.
Na4 {[%clk 0:01:00.6]} 58... Kf4 {[%clk 0:01:28.6]} 59. Nc3 {[%clk 0:00:53.5]}
59... Nxc3 {[%clk 0:01:26.5]} 60. Kxc3 {[%clk 0:00:52.5]} 60... Bxe4 {[%clk
0:01:25.9]} 0-1

[Event "Live Chess"]
[Site "Chess.com"]
[Date "2023.05.20"]
[Round "-"]
[White "GMHarry-youtube"]
[Black "Chesscoach_Golichenko"]
[Result "0-1"]
[WhiteElo "2172"]
[BlackElo "2645"]
[TimeControl "300"]
[EndTime "9:39:22 PDT"]
[Termination "Chesscoach_Golichenko won by resignation"]

1. e4 {[%clk 0:04:57.5]} 1... Nf6 {[%clk 0:04:59]} 2. e5 {[%clk 0:04:56.3]} 2...
Nd5 {[%clk 0:04:57.9]} 3. d4 {[%clk 0:04:56]} 3... d6 {[%clk 0:04:56.8]} 4. Nf3
{[%clk 0:04:55.3]} 4... g6 {[%clk 0:04:54.6]} 5. Bd3 {[%clk 0:04:49.4]} 5... Bg7
{[%clk 0:04:52.9]} 6. exd6 {[%clk 0:04:48.2]} 6... cxd6 {[%clk 0:04:49.4]} 7. c3
{[%clk 0:04:48.1]} 7... O-O {[%clk 0:04:47.9]} 8. O-O {[%clk 0:04:42]} 8... Nc6
{[%clk 0:04:45]} 9. Nbd2 {[%clk 0:04:39]} 9... e5 {[%clk 0:04:43.6]} 10. Bc4
{[%clk 0:04:34.3]} 10... Nb6 {[%clk 0:04:39.8]} 11. Bb3 {[%clk 0:04:17.3]} 11...
exd4 {[%clk 0:04:26.6]} 12. cxd4 {[%clk 0:04:14.8]} 12... Nxd4 {[%clk
0:04:24.9]} 13. Nxd4 {[%clk 0:04:14.1]} 13... Bxd4 {[%clk 0:04:24.6]} 14. Nf3
{[%clk 0:04:13.9]} 14... Bg7 {[%clk 0:04:23.6]} 15. Bf4 {[%clk 0:04:12.1]} 15...
d5 {[%clk 0:04:19.3]} 16. a4 {[%clk 0:04:09.4]} 16... Be6 {[%clk 0:04:15.2]} 17.
Rc1 {[%clk 0:04:01.3]} 17... Bxb2 {[%clk 0:04:07.2]} 18. Rc2 {[%clk 0:03:58.9]}
18... Bg7 {[%clk 0:04:02.7]} 19. Bc7 {[%clk 0:03:55.3]} 19... Qd7 {[%clk
0:04:00.5]} 20. Nd4 {[%clk 0:03:46.4]} 20... Nc4 {[%clk 0:03:55.1]} 21. Nxe6
{[%clk 0:03:37.6]} 21... Qxe6 {[%clk 0:03:51.4]} 22. Bxc4 {[%clk 0:03:35.2]}
22... dxc4 {[%clk 0:03:46.8]} 23. Re1 {[%clk 0:03:34.3]} 23... Qc6 {[%clk
0:03:42.6]} 24. Bg3 {[%clk 0:03:29.1]} 24... Rad8 {[%clk 0:03:32.4]} 25. Qc1
{[%clk 0:03:27.7]} 25... c3 {[%clk 0:03:29.4]} 26. Be5 {[%clk 0:03:25.4]} 26...
Bxe5 {[%clk 0:03:19.4]} 27. Rxe5 {[%clk 0:03:25.3]} 27... Qxa4 {[%clk
0:03:17.7]} 28. Rc5 {[%clk 0:03:22]} 28... Qg4 {[%clk 0:03:05]} 29. f3 {[%clk
0:03:12.5]} 29... Qd4+ {[%clk 0:03:02.2]} 30. Kf1 {[%clk 0:03:08.7]} 30... Qxc5
{[%clk 0:03:01.1]} 31. Rxc3 {[%clk 0:03:07.2]} 31... Qb5+ {[%clk 0:03:00.3]} 0-1

[Event "Live Chess"]
[Site "Chess.com"]
[Date "2023.05.20"]
[Round "-"]
[White "LL220284LL"]
[Black "FlyingChessKestrel13"]
[Result "1-0"]
[WhiteElo "2410"]
[BlackElo "2138"]
[TimeControl "300"]
[EndTime "9:39:23 PDT"]
[Termination "LL220284LL won by resignation"]

1. g3 {[%clk 0:04:58.9]} 1... d5 {[%clk 0:04:57.2]} 2. Bg2 {[%clk 0:04:58.3]}
2... c6 {[%clk 0:04:56.5]} 3. c4 {[%clk 0:04:57.5]} 3... e6 {[%clk 0:04:55]} 4.
b3 {[%clk 0:04:56.8]} 4... Nf6 {[%clk 0:04:52.9]} 5. Bb2 {[%clk 0:04:56.3]} 5...
Be7 {[%clk 0:04:52.4]} 6. Nf3 {[%clk 0:04:55.6]} 6... O-O {[%clk 0:04:51.7]} 7.
O-O {[%clk 0:04:54.9]} 7... Nbd7 {[%clk 0:04:50.8]} 8. e3 {[%clk 0:04:54.3]}
8... b6 {[%clk 0:04:50.1]} 9. d4 {[%clk 0:04:53]} 9... Bb7 {[%clk 0:04:46.1]}
10. Nc3 {[%clk 0:04:52.4]} 10... c5 {[%clk 0:04:44.3]} 11. cxd5 {[%clk
0:04:51.2]} 11... exd5 {[%clk 0:04:43]} 12. Rc1 {[%clk 0:04:49.7]} 12... Rc8
{[%clk 0:04:40.8]} 13. Qe2 {[%clk 0:04:48.3]} 13... Ne4 {[%clk 0:04:36.6]} 14.
Rfd1 {[%clk 0:04:46.1]} 14... Ndf6 {[%clk 0:04:28.4]} 15. Nd2 {[%clk 0:04:44.5]}
15... Nxc3 {[%clk 0:04:25.6]} 16. Bxc3 {[%clk 0:04:43.2]} 16... cxd4 {[%clk
0:04:25]} 17. Bxd4 {[%clk 0:04:42]} 17... Rxc1 {[%clk 0:04:23.8]} 18. Rxc1
{[%clk 0:04:41.9]} 18... Bd6 {[%clk 0:04:20.4]} 19. Nf3 {[%clk 0:04:31.6]} 19...
Qe7 {[%clk 0:04:19.2]} 20. Ne1 {[%clk 0:04:29.8]} 20... Be5 {[%clk 0:04:11.2]}
21. Bxe5 {[%clk 0:04:26.6]} 21... Qxe5 {[%clk 0:04:10.3]} 22. Nf3 {[%clk
0:04:25.9]} 22... Qe7 {[%clk 0:04:07.8]} 23. Nd4 {[%clk 0:04:25.2]} 23... Ne4
{[%clk 0:04:03.5]} 24. Qc2 {[%clk 0:04:20]} 24... g6 {[%clk 0:03:57.6]} 25. Qd3
{[%clk 0:03:57.5]} 25... Qa3 {[%clk 0:03:52]} 26. Rc2 {[%clk 0:03:54.2]} 26...
Ba6 {[%clk 0:03:48.7]} 27. Qd1 {[%clk 0:03:40.6]} 27... Qe7 {[%clk 0:03:24.3]}
28. Nc6 {[%clk 0:03:36.4]} 28... Qe6 {[%clk 0:03:20]} 29. Nb4 {[%clk 0:03:29.7]}
29... Bc8 {[%clk 0:03:16.3]} 30. Qxd5 {[%clk 0:03:25.7]} 30... Qxd5 {[%clk
0:03:10.1]} 31. Nxd5 {[%clk 0:03:25.6]} 31... Nc5 {[%clk 0:03:04.8]} 32. b4
{[%clk 0:03:22.8]} 32... Ne6 {[%clk 0:02:58.2]} 33. Rxc8 {[%clk 0:03:19.7]} 1-0